[Event "Titled Tuesday Blitz July 13 2021"]
[White "Le, Tuan Minh"]
[Black "Ozen, Bahadir"]
[WhiteFideId "12401153"]
[BlackFideId "6337058"]
[WhiteElo "2450"]
[BlackElo "2503"]
[Result "1-0"]
[Round "07"]
[TimeControl "180+1"]
[Date "2021.07.13"]
[WhiteClock "0:00:26"]
[BlackClock "0:00:02"]

1. d4 {[%clk 0:03:00]}  Nf6 {[%clk 0:02:59]} 2. Nf3 {[%clk 0:03:00]}  e6 {[%clk 0:02:59]} 3. Bg5 {[%clk 0:03:01]}  d5 {[%clk 0:02:55]} 4. e3 {[%clk 0:03:00]}  Nbd7 {[%clk 0:02:52]} 5. c4 {[%clk 0:02:59]}  Be7 {[%clk 0:02:48]} 6. Nc3 {[%clk 0:03:00]}  O-O {[%clk 0:02:47]} 7. Rc1 {[%clk 0:03:00]}  h6 {[%clk 0:02:40]} 8. Bh4 {[%clk 0:02:59]}  b6 {[%clk 0:02:35]} 9. cxd5 {[%clk 0:02:57]}  exd5 {[%clk 0:02:28]} 10. Bd3 {[%clk 0:02:57]}  Bb7 {[%clk 0:02:28]} 11. O-O {[%clk 0:02:54]}  c5 {[%clk 0:02:20]} 12. Qc2 {[%clk 0:02:35]}  Re8 {[%clk 0:02:01]} 13. Rfd1 {[%clk 0:02:33]}  Ne4 {[%clk 0:02:00]} 14. Bxe7 {[%clk 0:02:29]}  Qxe7 {[%clk 0:02:00]} 15. dxc5 {[%clk 0:02:30]}  Ndxc5 {[%clk 0:01:34]} 16. Bb5 {[%clk 0:02:29]}  Red8 {[%clk 0:01:33]} 17. Nd4 {[%clk 0:02:29]}  Rac8 {[%clk 0:01:32]} 18. Qe2 {[%clk 0:02:18]}  a6 {[%clk 0:01:31]} 19. Bd3 {[%clk 0:02:18]}  b5 {[%clk 0:01:30]} 20. a3 {[%clk 0:02:12]}  Qg5 {[%clk 0:01:28]} 21. Bb1 {[%clk 0:02:08]}  Qf6 {[%clk 0:01:28]} 22. h3 {[%clk 0:02:02]}  g6 {[%clk 0:01:27]} 23. Ba2 {[%clk 0:01:57]}  Nxc3 {[%clk 0:01:18]} 24. Rxc3 {[%clk 0:01:58]}  Ne4 {[%clk 0:01:17]} 25. Rcc1 {[%clk 0:01:38]}  Kg7 {[%clk 0:01:16]} 26. Qf3 {[%clk 0:01:33]}  Qxf3 {[%clk 0:01:14]} 27. gxf3 {[%clk 0:01:34]}  Nd6 {[%clk 0:01:14]} 28. b3 {[%clk 0:01:31]}  Kf6 {[%clk 0:01:11]} 29. Bb1 {[%clk 0:01:30]}  Rxc1 {[%clk 0:01:04]} 30. Rxc1 {[%clk 0:01:31]}  Rc8 {[%clk 0:01:05]} 31. Rd1 {[%clk 0:01:25]}  Rc3 {[%clk 0:01:02]} 32. h4 {[%clk 0:01:19]}  g5 {[%clk 0:00:51]} 33. hxg5+ {[%clk 0:01:19]}  hxg5 {[%clk 0:00:51]} 34. Kf1 {[%clk 0:01:19]}  Ke7 {[%clk 0:00:50]} 35. Ke2 {[%clk 0:01:18]}  Kf6 {[%clk 0:00:50]} 36. Kd2 {[%clk 0:01:18]}  Rc8 {[%clk 0:00:50]} 37. Rh1 {[%clk 0:01:19]}  Ke7 {[%clk 0:00:41]} 38. Rh6 {[%clk 0:01:12]}  Bc6 {[%clk 0:00:32]} 39. Bf5 {[%clk 0:01:10]}  Rc7 {[%clk 0:00:32]} 40. Rh5 {[%clk 0:01:05]}  Kf6 {[%clk 0:00:31]} 41. Bd3 {[%clk 0:01:05]}  Bd7 {[%clk 0:00:28]} 42. Rh1 {[%clk 0:00:54]}  Ke7 {[%clk 0:00:28]} 43. Rh6 {[%clk 0:00:50]}  Rc8 {[%clk 0:00:28]} 44. Ne2 {[%clk 0:00:48]}  g4 {[%clk 0:00:26]} 45. Nf4 {[%clk 0:00:45]}  Be6 {[%clk 0:00:18]} 46. fxg4 {[%clk 0:00:44]}  Ne4+ {[%clk 0:00:16]} 47. Bxe4 {[%clk 0:00:44]}  dxe4 {[%clk 0:00:17]} 48. Nxe6 {[%clk 0:00:42]}  fxe6 {[%clk 0:00:17]} 49. Rh7+ {[%clk 0:00:43]}  Kf6 {[%clk 0:00:16]} 50. Rd7 {[%clk 0:00:36]}  Ke5 {[%clk 0:00:11]} 51. b4 {[%clk 0:00:32]}  Rf8 {[%clk 0:00:09]} 52. Ke2 {[%clk 0:00:31]}  Ra8 {[%clk 0:00:07]} 53. Rf7 {[%clk 0:00:27]}  a5 {[%clk 0:00:04]} 54. Rb7 {[%clk 0:00:27]}  axb4 {[%clk 0:00:04]} 55. Rxb5+ {[%clk 0:00:27]}  Kf6 {[%clk 0:00:05]} 56. axb4 {[%clk 0:00:27]}  Ra2+ {[%clk 0:00:05]} 57. Kf1 {[%clk 0:00:28]}  Rb2 {[%clk 0:00:06]} 58. g5+ {[%clk 0:00:27]}  Kg6 {[%clk 0:00:06]} 59. Kg2 {[%clk 0:00:28]}  Rd2 {[%clk 0:00:05]} 60. Re5 {[%clk 0:00:28]}  Rb2 {[%clk 0:00:05]} 61. Rxe6+ {[%clk 0:00:28]}  Kf5 {[%clk 0:00:05]} 62. Rb6 {[%clk 0:00:24]}  Kxg5 {[%clk 0:00:06]} 63. b5 {[%clk 0:00:24]}  Rb1 {[%clk 0:00:05]} 64. Rb8 {[%clk 0:00:24]}  Rb2 {[%clk 0:00:05]} 65. b6 {[%clk 0:00:24]}  Kf6 {[%clk 0:00:06]} 66. b7 {[%clk 0:00:25]}  Kg7 {[%clk 0:00:06]} 67. Kg3 {[%clk 0:00:26]}  Rb6 {[%clk 0:00:04]} 68. f3 {[%clk 0:00:25]}  exf3 {[%clk 0:00:03]} 69. Kxf3 {[%clk 0:00:25]}  Rb4 {[%clk 0:00:04]} 70. e4 {[%clk 0:00:26]}  Kh7 {[%clk 0:00:04]} 71. e5 {[%clk 0:00:26]}  Rb6 {[%clk 0:00:04]} 72. e6 {[%clk 0:00:26]}  Rxe6 {[%clk 0:00:03]} 73. Rc8 {[%clk 0:00:26]}  Rf6+ {[%clk 0:00:04]} 74. Kg4 {[%clk 0:00:26]}  Rg6+ {[%clk 0:00:04]} 75. Kf5 {[%clk 0:00:26]}  Rc6 {[%clk 0:00:02]} 76. Rxc6 {[%clk 0:00:26]} 1-0


[Site "https://www.chess.com"]

[Event "Titled Tuesday Blitz July 13 2021"]
[White "Liu, Manli"]
[Black "Tokman, Ariel"]
[WhiteFideId "8608121"]
[BlackFideId "117420"]
[WhiteElo "2061"]
[BlackElo "2345"]
[Result "1-0"]
[Round "07"]
[TimeControl "180+1"]
[Date "2021.07.13"]
[WhiteClock "0:00:53"]
[BlackClock "0:00:16"]

1. e4 {[%clk 0:03:00]}  Nf6 {[%clk 0:03:00]} 2. e5 {[%clk 0:03:00]}  Nd5 {[%clk 0:03:01]} 3. d4 {[%clk 0:03:01]}  d6 {[%clk 0:03:01]} 4. exd6 {[%clk 0:03:01]}  exd6 {[%clk 0:03:00]} 5. Nf3 {[%clk 0:03:02]}  Be7 {[%clk 0:02:58]} 6. c4 {[%clk 0:03:01]}  Nf6 {[%clk 0:02:56]} 7. Bd3 {[%clk 0:03:01]}  O-O {[%clk 0:02:57]} 8. O-O {[%clk 0:03:00]}  Nc6 {[%clk 0:02:56]} 9. h3 {[%clk 0:03:00]}  Bd7 {[%clk 0:02:52]} 10. a3 {[%clk 0:02:58]}  a5 {[%clk 0:02:50]} 11. Nc3 {[%clk 0:02:57]}  Re8 {[%clk 0:02:47]} 12. Re1 {[%clk 0:02:47]}  h6 {[%clk 0:02:42]} 13. Bc2 {[%clk 0:02:45]}  Bf8 {[%clk 0:02:40]} 14. Rxe8 {[%clk 0:02:41]}  Qxe8 {[%clk 0:02:40]} 15. Be3 {[%clk 0:02:38]}  Ne7 {[%clk 0:02:32]} 16. Qd2 {[%clk 0:02:35]}  Nf5 {[%clk 0:02:31]} 17. Bf4 {[%clk 0:02:35]}  Qd8 {[%clk 0:02:09]} 18. Re1 {[%clk 0:02:33]}  Ne7 {[%clk 0:02:03]} 19. d5 {[%clk 0:02:21]}  Bf5 {[%clk 0:01:56]} 20. Nd4 {[%clk 0:02:13]}  Bxc2 {[%clk 0:01:55]} 21. Qxc2 {[%clk 0:02:14]}  Qd7 {[%clk 0:01:53]} 22. Ne4 {[%clk 0:02:05]}  Nxe4 {[%clk 0:01:47]} 23. Qxe4 {[%clk 0:02:06]}  Ng6 {[%clk 0:01:47]} 24. Bg3 {[%clk 0:02:05]}  Be7 {[%clk 0:01:44]} 25. h4 {[%clk 0:02:05]}  Bf6 {[%clk 0:01:38]} 26. h5 {[%clk 0:02:02]}  Ne5 {[%clk 0:01:38]} 27. b3 {[%clk 0:02:01]}  a4 {[%clk 0:01:18]} 28. Qc2 {[%clk 0:01:36]}  axb3 {[%clk 0:01:13]} 29. Qxb3 {[%clk 0:01:37]}  b6 {[%clk 0:01:09]} 30. Bxe5 {[%clk 0:01:31]}  Bxe5 {[%clk 0:01:06]} 31. Nc6 {[%clk 0:01:30]}  Bf6 {[%clk 0:01:03]} 32. Qf3 {[%clk 0:01:21]}  Re8 {[%clk 0:00:51]} 33. Re4 {[%clk 0:01:18]}  Rxe4 {[%clk 0:00:44]} 34. Qxe4 {[%clk 0:01:19]}  Qc8 {[%clk 0:00:34]} 35. g3 {[%clk 0:01:11]}  Qa8 {[%clk 0:00:34]} 36. Kg2 {[%clk 0:01:07]}  Qc8 {[%clk 0:00:25]} 37. Qe7 {[%clk 0:00:53]}  Bg5 {[%clk 0:00:16]} 38. Qxg5 {[%clk 0:00:53]} 1-0


[Site "https://www.chess.com"]

[Event "Titled Tuesday Blitz July 13 2021"]
[White "Madaminov, Mukhiddin"]
[Black "Gabrielian, Artur"]
[WhiteFideId "14210703"]
[BlackFideId "4131002"]
[WhiteElo "1747"]
[BlackElo "2523"]
[Result "1-0"]
[Round "07"]
[TimeControl "180+1"]
[Date "2021.07.13"]
[WhiteClock "0:00:09"]
[BlackClock "0:00:08"]

1. e4 {[%clk 0:03:00]}  c5 {[%clk 0:02:59]} 2. Nf3 {[%clk 0:03:00]}  d6 {[%clk 0:03:00]} 3. Bb5+ {[%clk 0:03:00]}  Nd7 {[%clk 0:03:00]} 4. O-O {[%clk 0:03:00]}  a6 {[%clk 0:03:00]} 5. Bd3 {[%clk 0:02:59]}  Ngf6 {[%clk 0:02:59]} 6. Re1 {[%clk 0:03:00]}  b5 {[%clk 0:02:58]} 7. c3 {[%clk 0:03:00]}  c4 {[%clk 0:02:57]} 8. Bc2 {[%clk 0:03:00]}  Bb7 {[%clk 0:02:57]} 9. a4 {[%clk 0:03:00]}  e6 {[%clk 0:02:53]} 10. axb5 {[%clk 0:02:43]}  axb5 {[%clk 0:02:53]} 11. Rxa8 {[%clk 0:02:44]}  Qxa8 {[%clk 0:02:53]} 12. Na3 {[%clk 0:02:45]}  Be7 {[%clk 0:02:39]} 13. Nxb5 {[%clk 0:02:44]}  O-O {[%clk 0:02:39]} 14. Qe2 {[%clk 0:02:37]}  Rc8 {[%clk 0:02:38]} 15. d3 {[%clk 0:02:34]}  cxd3 {[%clk 0:02:34]} 16. Bxd3 {[%clk 0:02:34]}  Nc5 {[%clk 0:02:34]} 17. Nd2 {[%clk 0:02:07]}  Nxd3 {[%clk 0:02:30]} 18. Qxd3 {[%clk 0:02:08]}  d5 {[%clk 0:02:24]} 19. exd5 {[%clk 0:02:06]}  Nxd5 {[%clk 0:02:20]} 20. Nf3 {[%clk 0:01:59]}  Ba6 {[%clk 0:02:02]} 21. c4 {[%clk 0:01:58]}  Bxb5 {[%clk 0:01:57]} 22. cxb5 {[%clk 0:01:55]}  Qa1 {[%clk 0:01:51]} 23. Bg5 {[%clk 0:01:32]}  Qxb2 {[%clk 0:01:32]} 24. Bxe7 {[%clk 0:01:31]}  Nxe7 {[%clk 0:01:32]} 25. Qd7 {[%clk 0:01:30]}  Qb4 {[%clk 0:01:20]} 26. h3 {[%clk 0:01:28]}  Rb8 {[%clk 0:01:19]} 27. Qc7 {[%clk 0:01:22]}  Rc8 {[%clk 0:01:12]} 28. Qd7 {[%clk 0:01:19]}  h6 {[%clk 0:01:10]} 29. b6 {[%clk 0:01:01]}  Rb8 {[%clk 0:01:04]} 30. Rc1 {[%clk 0:01:00]}  Qf4 {[%clk 0:00:21]} 31. Rb1 {[%clk 0:00:27]}  Nd5 {[%clk 0:00:20]} 32. b7 {[%clk 0:00:27]}  Kh7 {[%clk 0:00:19]} 33. Qc8 {[%clk 0:00:25]}  Ne7 {[%clk 0:00:13]} 34. Qc5 {[%clk 0:00:23]}  Nf5 {[%clk 0:00:13]} 35. Rb4 {[%clk 0:00:20]}  Qd6 {[%clk 0:00:11]} 36. Qc3 {[%clk 0:00:14]}  Qd5 {[%clk 0:00:12]} 37. Qb2 {[%clk 0:00:12]}  Nd6 {[%clk 0:00:11]} 38. Rd4 {[%clk 0:00:12]}  Qc5 {[%clk 0:00:11]} 39. Qb1+ {[%clk 0:00:10]}  g6 {[%clk 0:00:10]} 40. Qd1 {[%clk 0:00:09]}  Nxb7 {[%clk 0:00:09]} 41. Rd7 {[%clk 0:00:10]}  Kg8 {[%clk 0:00:09]} 42. Qb3 {[%clk 0:00:09]}  Qc6 {[%clk 0:00:08]} 43. Ne5 {[%clk 0:00:08]}  Qc1+ {[%clk 0:00:08]} 44. Kh2 {[%clk 0:00:09]}  Qf4+ {[%clk 0:00:08]} 45. Qg3 {[%clk 0:00:10]}  Qf3 {[%clk 0:00:08]} 46. Qxf3 {[%clk 0:00:09]} 1-0


[Site "https://www.chess.com"]

[Event "Titled Tuesday Blitz July 13 2021"]
[White "Maevsky, Nikolay"]
[Black "Rustemov, Alexander"]
[WhiteFideId "4198220"]
[BlackFideId "4119002"]
[WhiteElo "2213"]
[BlackElo "2778"]
[Result "0-1"]
[Round "07"]
[TimeControl "180+1"]
[Date "2021.07.13"]
[WhiteClock "0:01:39"]
[BlackClock "0:01:53"]

1. d4 {[%clk 0:03:00]}  d5 {[%clk 0:02:59]} 2. Nf3 {[%clk 0:03:01]}  Nf6 {[%clk 0:02:59]} 3. c4 {[%clk 0:03:00]}  e6 {[%clk 0:02:58]} 4. g3 {[%clk 0:03:00]}  Be7 {[%clk 0:02:58]} 5. Bg2 {[%clk 0:03:01]}  O-O {[%clk 0:02:59]} 6. O-O {[%clk 0:03:01]}  c6 {[%clk 0:02:59]} 7. Qc2 {[%clk 0:03:01]}  Nbd7 {[%clk 0:03:00]} 8. Rd1 {[%clk 0:03:01]}  b6 {[%clk 0:03:00]} 9. Nbd2 {[%clk 0:02:58]}  Bb7 {[%clk 0:03:01]} 10. e4 {[%clk 0:02:58]}  Rc8 {[%clk 0:03:01]} 11. e5 {[%clk 0:02:56]}  Ne8 {[%clk 0:03:01]} 12. cxd5 {[%clk 0:02:50]}  cxd5 {[%clk 0:03:00]} 13. Qd3 {[%clk 0:02:43]}  Qc7 {[%clk 0:02:58]} 14. Bf1 {[%clk 0:02:35]}  Qc2 {[%clk 0:02:57]} 15. Qxc2 {[%clk 0:02:30]}  Rxc2 {[%clk 0:02:56]} 16. Bd3 {[%clk 0:02:30]}  Rc8 {[%clk 0:02:55]} 17. a3 {[%clk 0:02:29]}  Nc7 {[%clk 0:02:55]} 18. b4 {[%clk 0:02:26]}  Ba6 {[%clk 0:02:55]} 19. Bb1 {[%clk 0:02:17]}  Nb5 {[%clk 0:02:51]} 20. Bb2 {[%clk 0:02:17]}  Nc3 {[%clk 0:02:49]} 21. Bxc3 {[%clk 0:02:16]}  Rxc3 {[%clk 0:02:50]} 22. Ne1 {[%clk 0:02:02]}  Be2 {[%clk 0:02:47]} 23. Ba2 {[%clk 0:01:51]}  Bxd1 {[%clk 0:02:47]} 24. Rxd1 {[%clk 0:01:51]}  Rxa3 {[%clk 0:02:46]} 25. Bb1 {[%clk 0:01:51]}  Bxb4 {[%clk 0:02:44]} 26. Ndf3 {[%clk 0:01:51]}  Bxe1 {[%clk 0:02:39]} 27. Nxe1 {[%clk 0:01:51]}  Rc8 {[%clk 0:02:39]} 28. Nc2 {[%clk 0:01:48]}  Rac3 {[%clk 0:02:36]} 29. Rd2 {[%clk 0:01:47]}  b5 {[%clk 0:02:31]} 30. Kf1 {[%clk 0:01:47]}  a5 {[%clk 0:02:31]} 31. Ke2 {[%clk 0:01:47]}  b4 {[%clk 0:02:31]} 32. Ne1 {[%clk 0:01:47]}  Nb6 {[%clk 0:02:26]} 33. Nd3 {[%clk 0:01:46]}  Nc4 {[%clk 0:02:25]} 34. Rd1 {[%clk 0:01:45]}  Na3 {[%clk 0:02:16]} 35. Nc5 {[%clk 0:01:42]}  Nxb1 {[%clk 0:02:12]} 36. Rxb1 {[%clk 0:01:42]}  R8xc5 {[%clk 0:01:58]} 37. dxc5 {[%clk 0:01:43]}  Rxc5 {[%clk 0:01:58]} 38. Kd2 {[%clk 0:01:41]}  Kf8 {[%clk 0:01:57]} 39. f4 {[%clk 0:01:40]}  Ke7 {[%clk 0:01:56]} 40. h4 {[%clk 0:01:41]}  h5 {[%clk 0:01:55]} 41. g4 {[%clk 0:01:39]}  hxg4 {[%clk 0:01:55]} 42. Rg1 {[%clk 0:01:40]}  b3 {[%clk 0:01:54]} 43. Rxg4 {[%clk 0:01:39]}  b2 {[%clk 0:01:54]} 44. Rg1 {[%clk 0:01:39]}  a4 {[%clk 0:01:53]} 45. Rb1 {[%clk 0:01:39]}  a3 {[%clk 0:01:53]} 0-1


[Site "https://www.chess.com"]

[Event "Titled Tuesday Blitz July 13 2021"]
[White "Markidis, Konstantinos"]
[Black "Krivonosov, Oleg"]
[WhiteFideId "4203500"]
[BlackFideId "11600349"]
[WhiteElo "2304"]
[BlackElo "2469"]
[Result "0-1"]
[Round "07"]
[TimeControl "180+1"]
[Date "2021.07.13"]
[WhiteClock "0:00:01"]
[BlackClock "0:00:30"]

1. e4 {[%clk 0:03:00]}  e5 {[%clk 0:02:58]} 2. Nf3 {[%clk 0:03:00]}  Nc6 {[%clk 0:02:59]} 3. Bb5 {[%clk 0:03:00]}  Nf6 {[%clk 0:02:58]} 4. d3 {[%clk 0:03:00]}  Bc5 {[%clk 0:02:57]} 5. c3 {[%clk 0:03:00]}  d5 {[%clk 0:02:56]} 6. Nbd2 {[%clk 0:03:00]}  O-O {[%clk 0:02:55]} 7. O-O {[%clk 0:02:59]}  dxe4 {[%clk 0:02:55]} 8. dxe4 {[%clk 0:02:59]}  a5 {[%clk 0:02:55]} 9. Qe2 {[%clk 0:02:49]}  Qe7 {[%clk 0:02:54]} 10. a4 {[%clk 0:02:32]}  Nh5 {[%clk 0:02:46]} 11. Nb3 {[%clk 0:02:31]}  Bb6 {[%clk 0:02:42]} 12. Bc4 {[%clk 0:02:21]}  Qf6 {[%clk 0:02:36]} 13. h3 {[%clk 0:01:38]}  Ng3 {[%clk 0:02:33]} 14. Qc2 {[%clk 0:01:32]}  Nxf1 {[%clk 0:02:32]} 15. Bg5 {[%clk 0:01:29]}  Qg6 {[%clk 0:02:30]} 16. Kxf1 {[%clk 0:01:27]}  Be6 {[%clk 0:02:27]} 17. Nbd2 {[%clk 0:01:22]}  h6 {[%clk 0:02:18]} 18. Bh4 {[%clk 0:01:19]}  Bxc4+ {[%clk 0:02:04]} 19. Nxc4 {[%clk 0:01:19]}  Qe6 {[%clk 0:02:04]} 20. Nxb6 {[%clk 0:00:54]}  cxb6 {[%clk 0:02:05]} 21. Rd1 {[%clk 0:00:53]}  g5 {[%clk 0:02:00]} 22. Bg3 {[%clk 0:00:53]}  Rad8 {[%clk 0:01:59]} 23. Kg1 {[%clk 0:00:37]}  Rxd1+ {[%clk 0:01:54]} 24. Qxd1 {[%clk 0:00:37]}  Rd8 {[%clk 0:01:51]} 25. Qc1 {[%clk 0:00:33]}  f6 {[%clk 0:01:48]} 26. h4 {[%clk 0:00:31]}  g4 {[%clk 0:01:35]} 27. Nd2 {[%clk 0:00:21]}  Kh7 {[%clk 0:01:28]} 28. Nf1 {[%clk 0:00:18]}  Qc4 {[%clk 0:01:23]} 29. f3 {[%clk 0:00:11]}  gxf3 {[%clk 0:01:19]} 30. gxf3 {[%clk 0:00:11]}  Qe2 {[%clk 0:01:16]} 31. Qe3 {[%clk 0:00:05]}  Qxe3+ {[%clk 0:01:08]} 32. Nxe3 {[%clk 0:00:06]}  Rd3 {[%clk 0:01:07]} 33. Nc4 {[%clk 0:00:06]}  Rxf3 {[%clk 0:01:05]} 34. Kg2 {[%clk 0:00:05]}  Rd3 {[%clk 0:01:04]} 35. Bf2 {[%clk 0:00:05]}  Nd8 {[%clk 0:00:59]} 36. Bxb6 {[%clk 0:00:05]}  Ne6 {[%clk 0:01:00]} 37. Bxa5 {[%clk 0:00:05]}  Nf4+ {[%clk 0:00:59]} 38. Kf2 {[%clk 0:00:05]}  Rh3 {[%clk 0:00:57]} 39. Bd8 {[%clk 0:00:05]}  Kg6 {[%clk 0:00:53]} 40. a5 {[%clk 0:00:04]}  Nd3+ {[%clk 0:00:49]} 41. Ke2 {[%clk 0:00:04]}  Nxb2 {[%clk 0:00:47]} 42. Nd6 {[%clk 0:00:01]}  Na4 {[%clk 0:00:30]} 0-1


[Site "https://www.chess.com"]

[Event "Titled Tuesday Blitz July 13 2021"]
[White "Martinez Alcantara, Jose Eduardo"]
[Black "Zhigalko, Sergei"]
[WhiteFideId "3805662"]
[BlackFideId "13502956"]
[WhiteElo "2690"]
[BlackElo "2662"]
[Result "1/2-1/2"]
[Round "07"]
[TimeControl "180+1"]
[Date "2021.07.13"]
[WhiteClock "0:00:48"]
[BlackClock "0:00:35"]

1. c4 {[%clk 0:03:00]}  e5 {[%clk 0:03:00]} 2. g3 {[%clk 0:03:00]}  Nf6 {[%clk 0:03:00]} 3. Bg2 {[%clk 0:03:00]}  c6 {[%clk 0:03:01]} 4. d4 {[%clk 0:02:58]}  exd4 {[%clk 0:03:01]} 5. Qxd4 {[%clk 0:02:58]}  Na6 {[%clk 0:03:02]} 6. Nf3 {[%clk 0:02:58]}  Bc5 {[%clk 0:03:03]} 7. Qe5+ {[%clk 0:02:53]}  Be7 {[%clk 0:03:03]} 8. O-O {[%clk 0:02:52]}  O-O {[%clk 0:03:03]} 9. Rd1 {[%clk 0:02:52]}  Re8 {[%clk 0:03:03]} 10. Nc3 {[%clk 0:02:46]}  Nc5 {[%clk 0:03:00]} 11. Qd4 {[%clk 0:02:34]}  d6 {[%clk 0:02:52]} 12. b3 {[%clk 0:02:28]}  a5 {[%clk 0:02:51]} 13. Bb2 {[%clk 0:02:21]}  h6 {[%clk 0:02:40]} 14. h3 {[%clk 0:02:10]}  Bf5 {[%clk 0:02:37]} 15. Qf4 {[%clk 0:01:57]}  Bc2 {[%clk 0:02:15]} 16. Re1 {[%clk 0:01:46]}  Qb6 {[%clk 0:02:01]} 17. Nd4 {[%clk 0:01:38]}  Bh7 {[%clk 0:01:58]} 18. Ba3 {[%clk 0:01:14]}  Bf8 {[%clk 0:01:36]} 19. Rad1 {[%clk 0:01:11]}  a4 {[%clk 0:01:18]} 20. b4 {[%clk 0:01:11]}  Nce4 {[%clk 0:01:19]} 21. Nxe4 {[%clk 0:01:06]}  Nxe4 {[%clk 0:01:17]} 22. b5 {[%clk 0:00:56]}  Nc3 {[%clk 0:01:05]} 23. Rd2 {[%clk 0:00:52]}  Ne4 {[%clk 0:00:54]} 24. Rdd1 {[%clk 0:00:51]}  Nc3 {[%clk 0:00:39]} 25. Rd2 {[%clk 0:00:51]}  Ne4 {[%clk 0:00:35]} 26. Rdd1 {[%clk 0:00:48]} 1/2-1/2


[Site "https://www.chess.com"]

[Event "Titled Tuesday Blitz July 13 2021"]
[White "Mortazavi, Ali"]
[Black "Mikaelyan, Arman"]
[WhiteFideId "401323"]
[BlackFideId "13304852"]
[WhiteElo "2339"]
[BlackElo "2461"]
[Result "0-1"]
[Round "07"]
[TimeControl "180+1"]
[Date "2021.07.13"]
[WhiteClock "0:00:01"]
[BlackClock "0:00:06"]

1. Nf3 {[%clk 0:03:00]}  g6 {[%clk 0:02:58]} 2. e4 {[%clk 0:03:00]}  c5 {[%clk 0:02:57]} 3. d3 {[%clk 0:02:56]}  Bg7 {[%clk 0:02:57]} 4. g3 {[%clk 0:02:57]}  Nc6 {[%clk 0:02:57]} 5. Bg2 {[%clk 0:02:58]}  e6 {[%clk 0:02:50]} 6. O-O {[%clk 0:02:52]}  Nge7 {[%clk 0:02:50]} 7. Re1 {[%clk 0:02:51]}  O-O {[%clk 0:02:47]} 8. c3 {[%clk 0:02:49]}  d5 {[%clk 0:02:44]} 9. e5 {[%clk 0:02:47]}  b5 {[%clk 0:02:30]} 10. Bf4 {[%clk 0:02:45]}  b4 {[%clk 0:02:30]} 11. c4 {[%clk 0:02:41]}  Bb7 {[%clk 0:02:12]} 12. Nbd2 {[%clk 0:02:41]}  Nf5 {[%clk 0:02:10]} 13. cxd5 {[%clk 0:02:32]}  exd5 {[%clk 0:02:07]} 14. Rc1 {[%clk 0:02:26]}  Qb6 {[%clk 0:02:02]} 15. Nb3 {[%clk 0:02:19]}  c4 {[%clk 0:01:57]} 16. dxc4 {[%clk 0:02:15]}  dxc4 {[%clk 0:01:57]} 17. Rxc4 {[%clk 0:02:14]}  Rac8 {[%clk 0:01:40]} 18. e6 {[%clk 0:01:58]}  fxe6 {[%clk 0:01:18]} 19. Rxe6 {[%clk 0:01:57]}  Rfd8 {[%clk 0:01:18]} 20. Qc2 {[%clk 0:01:47]}  Qb5 {[%clk 0:01:03]} 21. Rc5 {[%clk 0:01:43]}  Qd3 {[%clk 0:01:00]} 22. Re8+ {[%clk 0:01:21]}  Bf8 {[%clk 0:00:46]} 23. Qxd3 {[%clk 0:01:20]}  Rxd3 {[%clk 0:00:47]} 24. Rxc8 {[%clk 0:01:16]}  Bxc8 {[%clk 0:00:47]} 25. Rxc6 {[%clk 0:01:14]}  Bb7 {[%clk 0:00:45]} 26. Rc1 {[%clk 0:00:51]}  Bxf3 {[%clk 0:00:42]} 27. Bxf3 {[%clk 0:00:51]}  Rxf3 {[%clk 0:00:43]} 28. Rc7 {[%clk 0:00:44]}  Bd6 {[%clk 0:00:24]} 29. Bxd6 {[%clk 0:00:37]}  Nxd6 {[%clk 0:00:24]} 30. Rxa7 {[%clk 0:00:33]}  Ne4 {[%clk 0:00:17]} 31. Ra4 {[%clk 0:00:24]}  Nxf2 {[%clk 0:00:15]} 32. Rxb4 {[%clk 0:00:24]}  Nd3 {[%clk 0:00:15]} 33. Rb8+ {[%clk 0:00:21]}  Kg7 {[%clk 0:00:16]} 34. Nd4 {[%clk 0:00:21]}  Rf6 {[%clk 0:00:15]} 35. b4 {[%clk 0:00:19]}  Ra6 {[%clk 0:00:13]} 36. b5 {[%clk 0:00:13]}  Rxa2 {[%clk 0:00:13]} 37. b6 {[%clk 0:00:14]}  Rb2 {[%clk 0:00:13]} 38. b7 {[%clk 0:00:11]}  Kh6 {[%clk 0:00:13]} 39. Ne6 {[%clk 0:00:08]}  Ne5 {[%clk 0:00:11]} 40. Rc8 {[%clk 0:00:05]}  Nf3+ {[%clk 0:00:09]} 41. Kf1 {[%clk 0:00:04]}  Nxh2+ {[%clk 0:00:09]} 42. Ke1 {[%clk 0:00:04]}  Nf3+ {[%clk 0:00:10]} 43. Kd1 {[%clk 0:00:04]}  Rxb7 {[%clk 0:00:10]} 44. Rc3 {[%clk 0:00:03]}  Ne5 {[%clk 0:00:09]} 45. Nf4 {[%clk 0:00:03]}  Kg5 {[%clk 0:00:09]} 46. Rc5 {[%clk 0:00:03]}  Kf5 {[%clk 0:00:07]} 47. Nd3 {[%clk 0:00:02]}  Re7 {[%clk 0:00:06]} 48. g4+ {[%clk 0:00:03]}  Ke4 {[%clk 0:00:06]} 49. Nf2+ {[%clk 0:00:01]}  Kf3 {[%clk 0:00:06]} 0-1


[Site "https://www.chess.com"]

[Event "Titled Tuesday Blitz July 13 2021"]
[White "Nguyen Hong Nhung"]
[Black "Gusarov, Grigory"]
[WhiteFideId "12412201"]
[BlackFideId "24102172"]
[WhiteElo "1661"]
[BlackElo "2269"]
[Result "0-1"]
[Round "07"]
[TimeControl "180+1"]
[Date "2021.07.13"]
[WhiteClock "0:00:33"]
[BlackClock "0:00:54"]

1. e4 {[%clk 0:03:00]}  c6 {[%clk 0:02:59]} 2. d4 {[%clk 0:03:01]}  d5 {[%clk 0:03:00]} 3. f3 {[%clk 0:03:01]}  e6 {[%clk 0:02:59]} 4. Nc3 {[%clk 0:03:01]}  Bb4 {[%clk 0:02:58]} 5. Bf4 {[%clk 0:03:01]}  Ne7 {[%clk 0:02:57]} 6. Qd3 {[%clk 0:02:57]}  Ng6 {[%clk 0:02:56]} 7. Bg3 {[%clk 0:02:55]}  Qa5 {[%clk 0:02:56]} 8. Ne2 {[%clk 0:02:53]}  b6 {[%clk 0:02:54]} 9. h4 {[%clk 0:02:42]}  Ba6 {[%clk 0:02:53]} 10. Qe3 {[%clk 0:02:43]}  Bxe2 {[%clk 0:02:52]} 11. Bxe2 {[%clk 0:02:43]}  h5 {[%clk 0:02:50]} 12. exd5 {[%clk 0:02:34]}  cxd5 {[%clk 0:02:46]} 13. O-O {[%clk 0:02:33]}  Bxc3 {[%clk 0:02:45]} 14. bxc3 {[%clk 0:02:34]}  Nd7 {[%clk 0:02:44]} 15. c4 {[%clk 0:02:34]}  dxc4 {[%clk 0:02:40]} 16. Bxc4 {[%clk 0:02:34]}  O-O {[%clk 0:02:02]} 17. Rfe1 {[%clk 0:02:18]}  Nf6 {[%clk 0:01:55]} 18. Bb3 {[%clk 0:02:13]}  Rad8 {[%clk 0:01:48]} 19. c4 {[%clk 0:02:12]}  Ne7 {[%clk 0:01:38]} 20. Be5 {[%clk 0:02:07]}  Nf5 {[%clk 0:01:28]} 21. Qg5 {[%clk 0:02:03]}  Nh7 {[%clk 0:01:28]} 22. Qf4 {[%clk 0:01:40]}  f6 {[%clk 0:01:27]} 23. Bc7 {[%clk 0:01:39]}  Rxd4 {[%clk 0:01:26]} 24. Qh2 {[%clk 0:01:22]}  Rxh4 {[%clk 0:01:22]} 25. Rxe6 {[%clk 0:00:54]}  Qc5+ {[%clk 0:01:17]} 26. Kh1 {[%clk 0:00:52]}  Qxc7 {[%clk 0:01:11]} 27. Qxh4 {[%clk 0:00:49]}  Nxh4 {[%clk 0:01:11]} 28. c5 {[%clk 0:00:50]}  Kh8 {[%clk 0:01:10]} 29. cxb6 {[%clk 0:00:49]}  axb6 {[%clk 0:01:10]} 30. Rae1 {[%clk 0:00:44]}  Ng5 {[%clk 0:01:04]} 31. Re7 {[%clk 0:00:42]}  Qg3 {[%clk 0:01:03]} 32. R1e2 {[%clk 0:00:42]}  Ngxf3 {[%clk 0:00:54]} 33. gxf3 {[%clk 0:00:43]}  Nxf3 {[%clk 0:00:54]} 34. Bd5 {[%clk 0:00:33]}  Qg1# {[%clk 0:00:54]} 0-1


[Site "https://www.chess.com"]